fUST/lending_fUST_20240731
["ID","MTS","AMOUNT","RATE_DAILY","PERIOD"]
[333696638,1722366642077,-216.51,0.00013698,2]
[333696639,1722366642086,-500.0,0.00013698,2]
[333696640,1722366642096,-500.0,0.00013698,2]
[333696641,1722366642106,-500.0,0.00013698,2]
[333696642,1722366642115,-614.24581285,0.00013698,2]
[333696643,1722366642125,-500.0,0.00013698,2]
[333696644,1722366642134,-500.0,0.00013698,2]
[333696645,1722366642143,-500.0,0.00013698,2]
[333696646,1722366642153,-500.0,0.00013698,2]
[333696647,1722366642163,-500.0,0.00013698,2]
[333696648,1722366642172,-500.0,0.00013698,2]
[333696649,1722366642183,-500.0,0.00013698,2]
[333696650,1722366642194,-500.0,0.00013698,2]
[333696651,1722366642207,-500.0,0.00013698,2]
[333696652,1722366642216,-500.0,0.00013698,2]
[333696653,1722366642226,-404.56712374,0.00013698,2]
[333696654,1722366642238,-518.53,0.00013698,2]
[333696655,1722366642250,-500.0,0.00013698,2]
[333696656,1722366642259,-500.0,0.00013698,2]
[333696657,1722366642268,-500.0,0.00013698,2]
[333696658,1722366642277,-500.0,0.00013698,2]
[333696659,1722366642286,-500.0,0.00013698,2]
[333696660,1722366642295,-500.0,0.00013698,2]
[333696661,1722366642304,-500.0,0.00013698,2]
[333696662,1722366642313,-500.0,0.00013698,2]
[333696663,1722366642324,-347.15245863,0.00013698,2]
[333696664,1722366642333,-500.0,0.00013698,2]
[333696665,1722366642343,-500.0,0.00013698,2]
[333696666,1722366642353,-535.27528348,0.00013698,2]
[333696667,1722366642364,-500.0,0.00013698,2]
[333696668,1722366642375,-500.0,0.00013698,2]
[333696669,1722366642385,-180.40389957,0.00013698,2]
[333696670,1722366642396,-500.0,0.00013698,2]
[333696671,1722366642406,-500.0,0.00013698,2]
[333696672,1722366642416,-500.0,0.00013698,2]
[333696673,1722366642427,-355.0,0.00013699,2]
[333696674,1722366642436,-3000.0,0.00013699,2]
[333696675,1722366642445,-1146.512745,0.00013699,2]
[333696676,1722366642455,-150.112233,0.000137,2]
[333696677,1722366642466,-355.88183112,0.00013734,2]
[333696678,1722366642476,-150.112233,0.000138,2]
[333696679,1722366642487,-355.88183112,0.00013871,2]
[333696680,1722366642499,-150.112233,0.000139,2]
[333696681,1722366642508,-150.112233,0.000139,2]
[333696682,1722366642518,-414.9056827,0.00013955,2]
[333696683,1722366642527,-154.3392,0.00013955,2]
[333696684,1722366642537,-28372.1840637,0.00013962,2]
[333696685,1722366642547,-500.0,0.0001397,2]
[333696686,1722366642556,-500.0,0.0001397,2]
[333696687,1722366642566,-500.0,0.0001397,2]
[333696688,1722366642576,-500.0,0.0001397,2]
[333696689,1722366642587,-500.0,0.0001397,2]
[333696690,1722366642597,-500.0,0.0001397,2]
[333696691,1722366642606,-500.0,0.0001397,2]
[333696692,1722366642617,-500.0,0.0001397,2]
[333696693,1722366642627,-500.0,0.0001397,2]
[333696694,1722366642638,-500.0,0.0001397,2]
[333696695,1722366642650,-500.0,0.0001397,2]
[333696696,1722366642660,-1397.69,0.0001397,2]
[333696697,1722366642670,-500.0,0.0001397,2]
[333696698,1722366642680,-500.0,0.0001397,2]
[333696699,1722366642692,-500.0,0.0001397,2]
[333696700,1722366642702,-500.0,0.0001397,2]
[333696701,1722366642713,-500.0,0.0001397,2]
[333696702,1722366642723,-500.0,0.0001397,2]
[333696703,1722366642734,-500.0,0.0001397,2]
[333696704,1722366642746,-500.0,0.0001397,2]
[333696705,1722366642756,-500.0,0.0001397,2]
[333696706,1722366642766,-500.0,0.0001397,2]
[333696707,1722366642777,-500.0,0.0001397,2]
[333696708,1722366642787,-625.53619781,0.0001397,2]
[333696709,1722366642797,-928.18432,0.0001397,2]
[333696710,1722366642809,-928.18432,0.0001397,2]
[333696711,1722366642818,-500.0,0.00013971,2]
[333696712,1722366642828,-153.0,0.00013972,2]
[333696713,1722366642837,-153.0,0.00013972,2]
[333696714,1722366642847,-153.0,0.00013972,2]
[333696715,1722366642858,-529.71,0.00013972,2]
[333696716,1722366642868,-500.0,0.00013972,2]
[333696717,1722366642881,-500.0,0.00013972,2]
[333696718,1722366642891,-2343.59,0.00013972,2]
[333696719,1722366642900,-500.0,0.00013972,2]
[333696720,1722366642911,-500.0,0.00013972,2]
[333696721,1722366642922,-500.0,0.00013972,2]
[333696722,1722366642931,-500.0,0.00013972,2]
[333696723,1722366642942,-500.0,0.00013972,2]
[333696724,1722366642952,-500.0,0.00013972,2]
[333696725,1722366642962,-500.0,0.00013972,2]
[333696726,1722366642971,-500.0,0.00013972,2]
[333696727,1722366642981,-500.0,0.00013972,2]
[333696728,1722366642990,-435.03754779,0.00013972,2]
[333696729,1722366643003,-500.0,0.00013972,2]
[333696730,1722366643015,-500.0,0.00013972,2]
[333696731,1722366643026,-500.0,0.00013972,2]
[333696732,1722366643038,-500.0,0.00013972,2]
[333696733,1722366643050,-500.0,0.00013972,2]
[333696734,1722366643060,-500.0,0.00013972,2]
[333696735,1722366643070,-500.0,0.00013972,2]
[333696736,1722366643081,-500.0,0.00013972,2]
[333696737,1722366643091,-500.0,0.00013972,2]
[333696738,1722366643101,-500.0,0.00013972,2]
[333696739,1722366643110,-438.13273219,0.00013972,2]
[333696740,1722366643120,-500.0,0.00013972,2]
[333696741,1722366643130,-500.0,0.00013972,2]
[333696742,1722366643139,-500.0,0.00013972,2]
[333696743,1722366643148,-500.0,0.00013972,2]
[333696744,1722366643157,-500.0,0.00013972,2]
[333696745,1722366643167,-500.0,0.00013972,2]
[333696746,1722366643177,-500.0,0.00013972,2]
[333696747,1722366643187,-500.0,0.00013972,2]
[333696749,1722366643197,-500.0,0.00013972,2]
[333696750,1722366643206,-500.0,0.00013972,2]
[333696751,1722366643216,-500.0,0.00013972,2]
[333696752,1722366643225,-500.0,0.00013972,2]
[333696753,1722366643235,-500.0,0.00013972,2]
[333696754,1722366643245,-500.0,0.00013972,2]
[333696756,1722366643255,-500.0,0.00013972,2]
[333696758,1722366643265,-500.0,0.00013972,2]
[333696759,1722366643274,-500.0,0.00013972,2]
[333696761,1722366643284,-500.0,0.00013972,2]
[333696763,1722366643294,-500.0,0.00013972,2]
[333696765,1722366643303,-500.0,0.00013972,2]
[333696767,1722366643312,-500.0,0.00013972,2]
[333696769,1722366643322,-500.0,0.00013972,2]
[333696771,1722366643333,-500.0,0.00013972,2]
[333696772,1722366643344,-500.0,0.00013972,2]
[333696773,1722366643354,-500.0,0.00013972,2]
[333696774,1722366643365,-500.0,0.00013972,2]
[333696775,1722366643376,-500.0,0.00013972,2]
[333696776,1722366643387,-500.0,0.00013972,2]
[333696777,1722366643396,-500.0,0.00013972,2]
[333696778,1722366643406,-500.0,0.00013972,2]
[333696779,1722366643415,-500.0,0.00013972,2]
[333696781,1722366643425,-500.0,0.00013972,2]
[333696783,1722366643435,-500.0,0.00013972,2]
[333696784,1722366643444,-500.0,0.00013972,2]
[333696785,1722366643455,-448.95470416,0.00013972,2]
[333696786,1722366643465,-500.0,0.00013972,2]
[333696787,1722366643476,-500.0,0.00013972,2]
[333696788,1722366643486,-500.0,0.00013972,2]
[333696790,1722366643498,-500.0,0.00013972,2]
[333696791,1722366643507,-500.0,0.00013972,2]
[333696792,1722366643516,-500.0,0.00013972,2]
[333696793,1722366643525,-509.32,0.00013972,2]
[333696795,1722366643536,-500.0,0.00013972,2]
[333696796,1722366643546,-500.0,0.00013972,2]
[333696797,1722366643556,-500.0,0.00013972,2]
[333696798,1722366643567,-500.0,0.00013972,2]
[333696799,1722366643579,-500.0,0.00013972,2]
[333696800,1722366643589,-500.0,0.00013972,2]
[333696801,1722366643598,-500.0,0.00013972,2]
[333696802,1722366643608,-500.0,0.00013972,2]
[333696803,1722366643617,-396.59936613,0.00013972,2]
[333696804,1722366643627,-500.0,0.00013972,2]
[333696805,1722366643636,-500.0,0.00013972,2]
[333696806,1722366643645,-500.0,0.00013972,2]
[333696807,1722366643654,-500.0,0.00013972,2]
[333696808,1722366643664,-500.0,0.00013972,2]
[333696809,1722366643673,-500.0,0.00013972,2]
[333696810,1722366643683,-500.0,0.00013972,2]
[333696811,1722366643693,-336.51722238,0.00013972,2]
[333696812,1722366643702,-500.0,0.00013972,2]
[333696813,1722366643711,-500.0,0.00013972,2]
[333696814,1722366643721,-500.0,0.00013972,2]
[333696815,1722366643730,-531.77,0.00013972,2]
[333696816,1722366643740,-500.0,0.00013972,2]
[333696817,1722366643753,-500.0,0.00013972,2]
[333696818,1722366643762,-500.0,0.00013972,2]
[333696819,1722366643772,-535.47847049,0.00013972,2]
[333696820,1722366643783,-500.0,0.00013972,2]
[333696821,1722366643793,-500.0,0.00013972,2]
[333696822,1722366643805,-500.0,0.00013972,2]
[333696823,1722366643817,-500.0,0.00013972,2]
[333696824,1722366643827,-500.0,0.00013972,2]
[333696825,1722366643837,-500.0,0.00013972,2]
[333696826,1722366643848,-500.0,0.00013972,2]
[333696827,1722366643859,-500.0,0.00013972,2]
[333696828,1722366643870,-500.0,0.00013972,2]
[333696829,1722366643883,-500.0,0.00013972,2]
[333696830,1722366643894,-500.0,0.00013972,2]
[333696831,1722366643904,-500.0,0.00013972,2]
[333696832,1722366643914,-500.0,0.00013972,2]
[333696833,1722366643925,-500.0,0.00013972,2]
[333696834,1722366643935,-500.0,0.00013972,2]
[333696835,1722366643944,-500.0,0.00013972,2]
[333696836,1722366643954,-500.0,0.00013972,2]
[333696837,1722366643965,-500.0,0.00013972,2]
[333696838,1722366643975,-500.0,0.00013972,2]
[333696839,1722366643984,-500.000001,0.00013972,2]
[333696840,1722366643996,-502.64021438,0.00013972,2]
[333696841,1722366644005,-500.0,0.00013972,2]
[333696842,1722366644014,-225.20638332,0.00013972,2]
[333696843,1722366644024,-506.45385332,0.00013972,2]
[333696844,1722366644034,-500.0,0.00013972,2]
[333696845,1722366644043,-500.0,0.00013972,2]
[333696846,1722366644052,-500.0,0.00013972,2]
[333696847,1722366644062,-500.0,0.00013972,2]
[333696848,1722366644072,-500.0,0.00013972,2]
[333696849,1722366644082,-500.0,0.00013972,2]
[333696850,1722366644091,-500.0,0.00013972,2]
[333696851,1722366644102,-500.0,0.00013972,2]
[333696852,1722366644112,-500.0,0.00013972,2]
[333696853,1722366644122,-265.68898801,0.00013972,2]
[333696854,1722366644131,-928.18432,0.00013972,2]
[333696855,1722366644141,-928.18432,0.00013972,2]
[333696856,1722366644150,-500.0,0.00013972,2]
[333696857,1722366644160,-150.112233,0.00014,2]
[333696858,1722366644172,-150.112233,0.00014,2]
[333696859,1722366644184,-355.88183112,0.00014007,2]
[333696860,1722366644197,-367.69126021,0.00014081,2]
[333696861,1722366644207,-150.112233,0.000141,2]
[333696862,1722366644216,-4256.88562057,0.00014113,2]
[333696863,1722366644227,-355.88183112,0.00014143,2]
[333696864,1722366644237,-150.112233,0.000142,2]
[333696865,1722366644250,-150.112233,0.000142,2]
[333696866,1722366644259,-150.46,0.00014227,2]
[333696867,1722366644269,-505.0,0.00014227,2]
[333696868,1722366644281,-1409.0,0.00014227,2]
[333696869,1722366644291,-28372.1840637,0.00014236,2]
[333696870,1722366644301,-500.0,0.00014243,2]
[333696871,1722366644311,-500.0,0.00014244,2]
[333696872,1722366644321,-500.0,0.00014244,2]
[333696873,1722366644333,-500.0,0.00014244,2]
[333696874,1722366644342,-1397.69,0.00014244,2]
[333696875,1722366644354,-500.0,0.00014244,2]
[333696876,1722366644365,-500.0,0.00014244,2]
[333696877,1722366644378,-500.0,0.00014244,2]
[333696878,1722366644389,-500.0,0.00014244,2]
[333696879,1722366644399,-152.62604587,0.00014244,2]
[333696880,1722366644409,-500.0,0.00014244,2]
[333696881,1722366644419,-500.0,0.00014244,2]
[333696882,1722366644429,-500.0,0.00014244,2]
[333696883,1722366644441,-500.0,0.00014245,2]
[333696884,1722366644451,-1326.65,0.00014245,2]
[333696885,1722366644460,-500.0,0.00014245,2]
[333696886,1722366644470,-529.71,0.00014246,2]
[333696887,1722366644479,-2343.59,0.00014246,2]
[333696888,1722366644490,-500.0,0.00014246,2]
[333696889,1722366644502,-500.0,0.00014246,2]
[333696890,1722366644512,-385.16,0.00014246,2]
[333696891,1722366644522,-500.0,0.00014246,2]
[333696892,1722366644534,-513.98,0.00014246,2]
[333696893,1722366644544,-500.0,0.00014246,2]
[333696894,1722366644553,-500.0,0.00014246,2]
[333696895,1722366644563,-500.0,0.00014246,2]
[333696896,1722366644572,-500.0,0.00014246,2]
[333696897,1722366644582,-500.0,0.00014246,2]
[333696898,1722366644591,-500.0,0.00014246,2]
[333696899,1722366644601,-500.0,0.00014246,2]
[333696900,1722366644611,-500.0,0.00014246,2]
[333696901,1722366644621,-500.0,0.00014246,2]
[333696902,1722366644631,-500.0,0.00014246,2]
[333696903,1722366644643,-500.0,0.00014246,2]
[333696904,1722366644653,-500.0,0.00014246,2]
[333696905,1722366644664,-500.0,0.00014246,2]
[333696906,1722366644674,-500.0,0.00014246,2]
[333696907,1722366644684,-500.0,0.00014246,2]
[333696908,1722366644694,-500.0,0.00014246,2]
[333696909,1722366644705,-500.0,0.00014246,2]
[333696910,1722366644715,-500.0,0.00014246,2]
[333696911,1722366644724,-500.0,0.00014246,2]
[333696912,1722366644734,-500.0,0.00014246,2]
[333696913,1722366644743,-500.0,0.00014246,2]
[333696914,1722366644754,-500.0,0.00014246,2]
[333696915,1722366644764,-500.0,0.00014246,2]
[333696916,1722366644774,-500.0,0.00014246,2]
[333696917,1722366644783,-500.0,0.00014246,2]
[333696918,1722366644793,-500.0,0.00014246,2]
[333696919,1722366644802,-500.0,0.00014246,2]
[333696920,1722366644811,-500.0,0.00014246,2]
[333696921,1722366644820,-500.0,0.00014246,2]
[333696922,1722366644829,-500.0,0.00014246,2]
[333696923,1722366644839,-500.0,0.00014246,2]
[333696924,1722366644851,-500.0,0.00014246,2]
[333696925,1722366644861,-500.0,0.00014246,2]
[333696926,1722366644871,-2000.0,0.00014246,2]
[333696927,1722366644882,-500.0,0.00014246,2]
[333696928,1722366644891,-500.0,0.00014246,2]
[333696929,1722366644902,-90.18164346,0.00014246,2]
[333696930,1722366644926,-409.81835654,0.00014246,2]
[333696931,1722366644936,-500.0,0.00014246,2]
[333696932,1722366644946,-500.0,0.00014246,2]
[333696933,1722366644957,-500.0,0.00014246,2]
[333696934,1722366644967,-500.0,0.00014246,2]
[333696935,1722366644979,-500.0,0.00014246,2]
[333696936,1722366644991,-500.0,0.00014246,2]
[333696937,1722366645003,-8.61527621,0.00014246,2]
[333696938,1722366645066,-491.38472379,0.00014246,2]
[333696939,1722366645076,-500.0,0.00014246,2]
[333696940,1722366645086,-500.0,0.00014246,2]
[333696941,1722366645096,-500.0,0.00014246,2]
[333696942,1722366645105,-500.0,0.00014246,2]
[333696943,1722366645115,-500.0,0.00014246,2]
[333696944,1722366645125,-500.0,0.00014246,2]
[333696945,1722366645134,-500.0,0.00014246,2]
[333696946,1722366645144,-500.0,0.00014246,2]
[333696947,1722366645153,-500.0,0.00014246,2]
[333696948,1722366645162,-26.23060284,0.00014246,2]
[333696949,1722366645174,-473.76939716,0.00014246,2]
[333696950,1722366645184,-414.06930067,0.00014246,2]
[333696951,1722366645194,-500.0,0.00014246,2]
[333696952,1722366645206,-500.0,0.00014246,2]
[333696953,1722366645215,-500.0,0.00014246,2]
[333696954,1722366645225,-500.0,0.00014246,2]
[333696955,1722366645235,-500.0,0.00014246,2]
[333696956,1722366645245,-500.0,0.00014246,2]
[333696957,1722366645255,-500.0,0.00014246,2]
[333696958,1722366645264,-500.0,0.00014246,2]
[333696959,1722366645274,-500.0,0.00014246,2]
[333696960,1722366645283,-500.0,0.00014246,2]
[333696961,1722366645292,-500.0,0.00014246,2]
[333696962,1722366645302,-500.0,0.00014246,2]
[333696963,1722366645312,-500.0,0.00014246,2]
[333696964,1722366645322,-500.0,0.00014246,2]
[333696965,1722366645331,-500.0,0.00014246,2]
[333696966,1722366645342,-500.0,0.00014246,2]
[333696967,1722366645352,-500.0,0.00014246,2]
[333696968,1722366645362,-612.71294329,0.00014246,2]
[333696969,1722366645372,-500.0,0.00014246,2]
[333696970,1722366645382,-500.0,0.00014246,2]
[333696971,1722366645392,-500.0,0.00014246,2]
[333696972,1722366645402,-500.0,0.00014246,2]
[333696973,1722366645412,-500.0,0.00014246,2]
[333696974,1722366645423,-500.0,0.00014246,2]
[333696975,1722366645434,-500.0,0.00014246,2]
[333696976,1722366645443,-500.0,0.00014246,2]
[333696977,1722366645452,-500.0,0.00014246,2]
[333696978,1722366645463,-500.0,0.00014246,2]
[333696979,1722366645474,-500.0,0.00014246,2]
[333696980,1722366645485,-574.99927375,0.00014246,2]
[333696981,1722366645497,-500.0,0.00014246,2]
[333696982,1722366645506,-500.0,0.00014246,2]
[333696983,1722366645516,-500.0,0.00014246,2]
[333696984,1722366645525,-500.0,0.00014246,2]
[333696985,1722366645535,-382.88,0.00014246,2]
[333696986,1722366645544,-928.18432,0.00014246,2]
[333696987,1722366645556,-928.18432,0.00014246,2]
[333696988,1722366645566,-750.0,0.00014247,2]
[333696989,1722366645577,-276.555,0.00014278,2]
[333696990,1722366645589,-14186.0920319,0.00014289,2]
[333696991,1722366645600,-3987.46153997,0.00014299,2]
[333696992,1722366645985,-44722.10555149,0.00014299,2]
[333696993,1722366645997,-1520.36265,0.00014299,2]
[333696994,1722366646008,-1520.36265,0.00014299,2]
[333696995,1722366646020,-151.0,0.00014299,2]
[333696996,1722366646031,-227.669845,0.00014299,2]
[333696997,1722366646043,-227.669845,0.00014299,2]
[333696998,1722366646053,-151.0,0.00014299,2]
[333696999,1722366646064,-151.0,0.00014299,2]
[333697000,1722366646075,-151.677989,0.00014299,2]
[333697001,1722366646086,-151.0,0.00014299,2]
[333697002,1722366646097,-928.18432,0.00014299,2]
[333697003,1722366646106,-151.0,0.00014299,2]
[333697004,1722366646116,-928.18432,0.00014299,2]
[333697005,1722366646127,-150.112233,0.000143,2]
[333697006,1722366646138,-150.112233,0.000143,2]
[333697007,1722366646148,-500.0,0.00014387,2]
[333697008,1722366646160,-1887.36059551,0.00014388,5]
[333697009,1722366646195,-473.86143023,0.00013698,2]
[333697010,1722366646206,-4404.37661957,0.00014388,5]
[333697011,1722366646218,-7944.71750148,0.00014389,2]
[333697012,1722366646232,-1157.0,0.00014389,2]
[333697019,1722366646716,-500.0,0.00013698,2]
[333697020,1722366646726,-5084.37453042,0.00014389,2]
[333697021,1722366646736,-500.0,0.00014398,2]
[333697022,1722366646747,-500.0,0.00014398,2]
[333697023,1722366646757,-1326.65,0.00014398,2]
[333697024,1722366646766,-500.0,0.00014398,2]
[333697025,1722366646777,-500.0,0.00014398,2]
[333697027,1722366646787,-1250.783654,0.00014398,2]
[333697028,1722366646798,-1250.783654,0.00014398,2]
[333697029,1722366646809,-183.683013,0.00014398,2]
[333697030,1722366646819,-183.683013,0.00014398,2]
[333697031,1722366646831,-500.0,0.00014398,2]
[333697032,1722366646843,-579.552312,0.00014398,2]
[333697033,1722366646854,-579.552312,0.00014398,2]
[333697034,1722366646865,-413.73386929,0.00014399,2]
[333697035,1722366646877,-1163.75358293,0.00014399,2]
[333697036,1722366646890,-7967.31785098,0.00014399,2]
[333697037,1722366646901,-1629.09525916,0.00014399,2]
[333697038,1722366646911,-5875.99994654,0.00014399,2]
[333697039,1722366646925,-6976.65392708,0.00014399,2]
[333697040,1722366646935,-2253.0398834,0.00014399,2]
[333697041,1722366646946,-150.112233,0.000144,2]
[333697042,1722366646956,-150.112233,0.000144,2]
[333697043,1722366646966,-200.0,0.000144,2]
[333697044,1722366646975,-150.112233,0.000144,2]
[333697045,1722366646985,-242.2079,0.00014417,2]
[333697046,1722366646994,-156.0,0.0001446,2]
[333697047,1722366647005,-14186.0920319,0.00014469,2]
[333697048,1722366647014,-500.0,0.0001447,2]
[333697049,1722366647024,-1326.65,0.0001447,2]
[333697050,1722366647033,-500.0,0.00014473,2]
[333697051,1722366647043,-500.0,0.00014477,2]
[333697052,1722366647052,-500.0,0.00014478,2]
[333697053,1722366647062,-14186.0920319,0.00014479,2]
[333697054,1722366647071,-928.18432,0.00014479,2]
[333697055,1722366647081,-928.18432,0.00014479,2]
[333697056,1722366647090,-500.0,0.0001448,2]
[333697057,1722366647100,-1326.65,0.0001448,2]
[333697058,1722366647109,-14186.0920319,0.0001448,2]
[333697059,1722366647119,-14186.0920319,0.00014487,2]
[333697060,1722366647128,-500.0,0.00014487,2]
[333697061,1722366647138,-500.0,0.00014488,2]
[333697062,1722366647147,-500.0,0.00014488,2]
[333697063,1722366647157,-1326.65,0.00014488,2]
[333697064,1722366647167,-14186.0920319,0.00014488,2]
[333697065,1722366647176,-14186.0920319,0.00014489,2]
[333697066,1722366647187,-611.65,0.00014489,2]
[333697067,1722366647198,-500.0,0.00014489,2]
[333697068,1722366647208,-500.0,0.00014489,2]
[333697069,1722366647220,-154.74859346,0.00014489,2]
[333697070,1722366647230,-500.0,0.00014489,2]
[333697071,1722366647241,-500.0,0.00014489,2]
[333697072,1722366647252,-500.0,0.00014489,2]
[333697073,1722366647262,-500.0,0.00014489,2]
[333697074,1722366647273,-500.0,0.00014489,2]
[333697075,1722366647283,-500.0,0.00014489,2]
[333697076,1722366647293,-1326.65,0.00014489,2]
[333697077,1722366647302,-1326.65,0.00014489,2]
[333697078,1722366647314,-1326.65,0.00014489,2]
[333697079,1722366647325,-1250.783654,0.00014489,2]
[333697080,1722366647337,-1250.783654,0.00014489,2]
[333697081,1722366647346,-1520.36265,0.00014489,2]
[333697082,1722366647358,-1520.36265,0.00014489,2]
[333697083,1722366647369,-183.683013,0.00014489,2]
[333697084,1722366647381,-183.683013,0.00014489,2]
[333697085,1722366647392,-151.0,0.00014489,2]
[333697086,1722366647405,-227.669845,0.00014489,2]
[333697087,1722366647416,-227.669845,0.00014489,2]
[333697088,1722366647426,-151.0,0.00014489,2]
[333697089,1722366647436,-151.0,0.00014489,2]
[333697090,1722366647448,-500.0,0.00014489,2]
[333697091,1722366647460,-579.552312,0.00014489,2]
[333697092,1722366647470,-579.552312,0.00014489,2]
[333697093,1722366647480,-151.0,0.00014489,2]
[333697094,1722366647489,-928.18432,0.00014489,2]
[333697095,1722366647499,-151.0,0.00014489,2]
[333697096,1722366647509,-928.18432,0.00014489,2]
[333697097,1722366647520,-928.18432,0.0001449,2]
[333697098,1722366647532,-928.18432,0.0001449,2]
[333697099,1722366647543,-611.65,0.00014497,2]
[333697100,1722366647552,-500.0,0.00014497,2]
[333697101,1722366647562,-548.51,0.00014497,2]
[333697102,1722366647571,-500.0,0.00014497,2]
[333697103,1722366647580,-1326.65,0.00014497,2]
[333697104,1722366647591,-500.0,0.00014497,2]
[333697105,1722366647603,-500.0,0.00014498,2]
[333697106,1722366647613,-500.0,0.00014498,2]
[333697107,1722366647624,-500.0,0.00014498,2]
[333697108,1722366647634,-570.42,0.00014498,2]
[333697109,1722366647644,-500.0,0.00014498,2]
[333697110,1722366647654,-517.95,0.00014498,2]
[333697111,1722366647666,-500.0,0.00014498,2]
[333697112,1722366647676,-500.0,0.00014498,2]
[333697113,1722366647686,-500.0,0.00014498,2]
[333697114,1722366647696,-506.54896402,0.00014498,2]
[333697115,1722366647707,-500.0,0.00014498,2]
[333697116,1722366647718,-500.0,0.00014498,2]
[333697117,1722366647728,-500.0,0.00014498,2]
[333697118,1722366647739,-500.0,0.00014498,2]
[333697119,1722366647749,-500.0,0.00014498,2]
[333697120,1722366647759,-500.0,0.00014498,2]
[333697121,1722366647768,-500.0,0.00014498,2]
[333697122,1722366647777,-502.1682564,0.00014498,2]
[333697123,1722366647787,-500.0,0.00014498,2]
[333697124,1722366647796,-500.0,0.00014498,2]
[333697125,1722366647806,-500.0,0.00014498,2]
[333697126,1722366647815,-392.02774448,0.00014498,2]
[333697127,1722366647825,-500.0,0.00014498,2]
[333697128,1722366647835,-500.0,0.00014498,2]
[333697129,1722366647847,-500.0,0.00014498,2]
[333697130,1722366647858,-500.0,0.00014498,2]
[333697131,1722366647869,-500.0,0.00014498,2]
[333697132,1722366647882,-500.0,0.00014498,2]
[333697133,1722366647893,-500.0,0.00014498,2]
[333697134,1722366647903,-500.0,0.00014498,2]
[333697135,1722366647914,-500.0,0.00014498,2]
[333697136,1722366647925,-500.0,0.00014498,2]
[333697137,1722366647935,-500.0,0.00014498,2]
[333697138,1722366647947,-506.01798106,0.00014498,2]
[333697139,1722366647961,-500.0,0.00014498,2]
[333697140,1722366647971,-500.0,0.00014498,2]
[333697141,1722366647983,-500.0,0.00014498,2]
[333697142,1722366647994,-500.0,0.00014498,2]
[333697143,1722366648007,-500.0,0.00014498,2]
[333697144,1722366648019,-500.05539604,0.00014498,2]
[333697145,1722366648029,-342.0328129,0.00014498,2]
[333697146,1722366648043,-500.0,0.00014498,2]
[333697147,1722366648056,-500.0,0.00014498,2]
[333697148,1722366648068,-500.0,0.00014498,2]
[333697149,1722366648079,-500.0,0.00014498,2]
[333697150,1722366648090,-500.0,0.00014498,2]
[333697151,1722366648104,-500.0,0.00014498,2]
[333697152,1722366648115,-500.0,0.00014498,2]
[333697153,1722366648125,-500.0,0.00014498,2]
[333697154,1722366648136,-500.0,0.00014498,2]
[333697155,1722366648147,-500.0,0.00014498,2]
[333697156,1722366648159,-500.0,0.00014498,2]
[333697157,1722366648169,-500.0,0.00014498,2]